fUST/lending_fUST_20250430
["ID","MTS","AMOUNT","RATE_DAILY","PERIOD"]
[359385014,1745965865867,-1212.7,0.00030958,2]
[359385015,1745965865877,-829.03,0.00030958,2]
[359385016,1745965865887,-618.67,0.00030958,2]
[359385017,1745965865897,-2209.47,0.00030958,2]
[359385018,1745965865907,-779.7,0.00030958,2]
[359385019,1745965865917,-400.0,0.00030958,2]
[359385020,1745965865927,-400.0,0.00030958,2]
[359385021,1745965865938,-574.83,0.00030958,2]
[359385022,1745965865948,-1051.35,0.00030958,2]
[359385023,1745965865958,-2169.26,0.00030958,2]
[359385024,1745965865967,-400.0,0.00030958,2]
[359385025,1745965865978,-817.36,0.00030958,2]
[359385026,1745965865987,-962.08,0.00030958,2]
[359385027,1745965865997,-776.26,0.00030958,2]
[359385028,1745965866007,-2082.61,0.00030958,2]
[359385029,1745965866017,-400.0,0.00030958,2]
[359385030,1745965866026,-400.0,0.00030958,2]
[359385031,1745965866036,-1118.47,0.00030958,2]
[359385032,1745965866046,-2991.06,0.00030958,2]
[359385033,1745965866056,-2334.65,0.00030958,2]
[359385034,1745965866065,-439.33,0.00030958,2]
[359385035,1745965866075,-436.46,0.00030958,2]
[359385036,1745965866085,-400.0,0.00030958,2]
[359385037,1745965866094,-1554.49,0.00030958,2]
[359385038,1745965866105,-1199.73,0.00030958,2]
[359385039,1745965866115,-2606.96,0.00030958,2]
[359385040,1745965866125,-400.0,0.00030958,2]
[359385041,1745965866135,-550.32,0.00030958,2]
[359385042,1745965866145,-400.0,0.00030958,2]
[359385043,1745965866154,-1329.8,0.00030958,2]
[359385044,1745965866166,-5657.09,0.00030958,2]
[359385045,1745965866176,-2328.55,0.00030958,2]
[359385046,1745965866186,-1398.53,0.00030958,2]
[359385047,1745965866196,-400.0,0.00030958,2]
[359385048,1745965866210,-516.76,0.00030958,2]
[359385049,1745965866222,-151.0,0.00030958,7]
[359385050,1745965866232,-421.28334683,0.00031,3]
[359385051,1745965866242,-12589.54207618,0.00031,3]
[359385052,1745965866252,-160.0,0.00031,3]
[359385053,1745965866262,-160.0,0.00031,3]
[359385054,1745965866272,-2596.53974516,0.00031038,9]
[359385055,1745965866282,-400.0,0.00031114,2]
[359385056,1745965866292,-400.0,0.00031114,2]
[359385057,1745965866303,-418.65,0.00031114,2]
[359385058,1745965866316,-478.04,0.00031114,2]
[359385059,1745965866326,-366.94865036,0.00031114,2]
[359385060,1745965866338,-463.14,0.00031114,2]
[359385061,1745965866349,-963.49,0.00031114,2]
[359385062,1745965866360,-400.0,0.00031114,2]
[359385063,1745965866372,-465.12,0.00031114,2]
[359385064,1745965866382,-806.81,0.00031114,2]
[359385065,1745965866392,-400.0,0.00031114,2]
[359385066,1745965866402,-410.61,0.00031114,2]
[359385067,1745965866413,-400.0,0.00031114,2]
[359385068,1745965866424,-1263.83,0.00031114,2]
[359385069,1745965866434,-453.97,0.00031114,2]
[359385070,1745965866444,-1383.41,0.00031114,2]
[359385071,1745965866454,-400.0,0.00031114,2]
[359385072,1745965866464,-512.01,0.00031114,2]
[359385073,1745965866474,-400.0,0.00031114,2]
[359385074,1745965866485,-728.24,0.00031114,2]
[359385075,1745965866495,-400.0,0.00031114,2]
[359385076,1745965866505,-1422.9,0.00031114,2]
[359385077,1745965866515,-2294.8,0.00031114,2]
[359385078,1745965866525,-409.84,0.00031114,2]
[359385079,1745965866536,-937.84,0.00031114,2]
[359385080,1745965866547,-1024.45,0.00031114,2]
[359385081,1745965866557,-2784.61,0.00031114,2]
[359385082,1745965866567,-501.16,0.00031114,2]
[359385083,1745965866577,-1202.0,0.00031114,2]
[359385084,1745965866589,-719.18,0.00031114,2]
[359385085,1745965866600,-1358.32,0.00031114,2]
[359385086,1745965866610,-4215.29,0.00031114,2]
[359385087,1745965866619,-489.54,0.00031114,2]
[359385088,1745965866630,-350.0,0.00031169,5]
[359385089,1745965866640,-903.20162953,0.00031232,2]
[359385090,1745965866651,-14077.37819177,0.00031232,3]
[359385091,1745965866663,-400.0,0.00031232,2]
[359385092,1745965866673,-451.98,0.00031232,2]
[359385093,1745965866684,-400.0,0.00031232,2]
[359385094,1745965866694,-438.8,0.00031232,2]
[359385095,1745965866704,-400.0,0.00031232,2]
[359385096,1745965866714,-487.76,0.00031232,2]
[359385097,1745965866724,-616.52,0.00031232,2]
[359385098,1745965866734,-757.11,0.00031232,2]
[359385099,1745965866744,-400.0,0.00031232,2]
[359385100,1745965866754,-599.52,0.00031232,2]
[359385101,1745965866764,-400.0,0.00031232,2]
[359385102,1745965866774,-1130.55,0.00031232,2]
[359385103,1745965866784,-871.7,0.00031232,2]
[359385104,1745965866798,-387.89156611,0.00031232,2]
[359385105,1745965866808,-400.0,0.00031232,2]
[359385106,1745965866817,-2618.11,0.00031232,2]
[359385107,1745965866827,-418.78,0.00031232,2]
[359385108,1745965866836,-400.0,0.00031232,2]
[359385109,1745965866847,-467.60682574,0.00031232,2]
[359385110,1745965866858,-934.01,0.00031232,2]
[359385111,1745965866868,-1118.61,0.00031232,2]
[359385112,1745965866878,-405.75,0.00031232,2]
[359385113,1745965866888,-400.0,0.00031232,2]
[359385114,1745965866898,-730.98,0.00031232,2]
[359385115,1745965866908,-400.0,0.00031232,2]
[359385116,1745965866919,-566.98,0.00031232,2]
[359385117,1745965866929,-893.77,0.00031232,2]
[359385118,1745965866939,-731.76,0.00031232,2]
[359385119,1745965866949,-1275.51,0.00031232,2]
[359385120,1745965866959,-445.84,0.00031232,2]
[359385121,1745965866969,-1753.72,0.00031232,2]
[359385122,1745965866979,-445.02,0.00031232,2]
[359385123,1745965866990,-672.19,0.00031232,2]
[359385124,1745965867127,-1367.8,0.00031232,2]
[359385125,1745965867138,-1033.02,0.00031232,2]
[359385126,1745965867148,-743.45,0.00031232,2]
[359385127,1745965867158,-713.45,0.00031232,2]
[359385128,1745965867168,-402.04,0.00031232,2]
[359385129,1745965867178,-3764.84,0.00031232,2]
[359385130,1745965867187,-3094.27,0.00031232,2]
[359385131,1745965867197,-417.66,0.00031232,2]
[359385132,1745965867206,-400.0,0.00031232,2]
[359385133,1745965867215,-400.0,0.00031232,2]
[359385134,1745965867226,-774.0,0.00031232,2]
[359385135,1745965867237,-1191.57,0.00031232,2]
[359385136,1745965867246,-948.03,0.00031232,2]
[359385137,1745965867256,-1212.7,0.00031232,2]
[359385138,1745965867267,-829.03,0.00031232,2]
[359385139,1745965867275,-618.67,0.00031232,2]
[359385140,1745965867284,-2209.47,0.00031232,2]
[359385141,1745965867293,-779.7,0.00031232,2]
[359385142,1745965867303,-400.0,0.00031232,2]
[359385143,1745965867313,-400.0,0.00031232,2]
[359385144,1745965867323,-574.83,0.00031232,2]
[359385145,1745965867333,-1051.35,0.00031232,2]
[359385146,1745965867342,-2169.26,0.00031232,2]
[359385147,1745965867352,-400.0,0.00031232,2]
[359385148,1745965867362,-817.36,0.00031232,2]
[359385149,1745965867371,-962.08,0.00031232,2]
[359385150,1745965867381,-776.26,0.00031232,2]
[359385151,1745965867390,-2082.61,0.00031232,2]
[359385152,1745965867399,-400.0,0.00031232,2]
[359385153,1745965867410,-400.0,0.00031232,2]
[359385154,1745965867420,-1118.47,0.00031232,2]
[359385155,1745965867430,-2991.06,0.00031232,2]
[359385156,1745965867440,-2334.65,0.00031232,2]
[359385157,1745965867450,-439.33,0.00031232,2]
[359385158,1745965867460,-436.46,0.00031232,2]
[359385159,1745965867469,-400.0,0.00031232,2]
[359385160,1745965867479,-1554.49,0.00031232,2]
[359385161,1745965867488,-1199.73,0.00031232,2]
[359385162,1745965867498,-2606.96,0.00031232,2]
[359385163,1745965867508,-162.67751987,0.00031232,2]
[359385164,1745965867518,-550.32,0.00031232,2]
[359385165,1745965867528,-400.0,0.00031232,2]
[359385166,1745965867537,-1329.8,0.00031232,2]
[359385167,1745965867547,-5657.09,0.00031232,2]
[359385168,1745965867557,-2328.55,0.00031232,2]
[359385169,1745965867567,-1398.53,0.00031232,2]
[359385170,1745965867577,-200.0,0.00031232,2]
[359385171,1745965867588,-516.76,0.00031232,2]
[359385172,1745965867597,-400.0,0.00031388,2]
[359385173,1745965867607,-400.0,0.00031388,2]
[359385174,1745965867616,-418.65,0.00031388,2]
[359385175,1745965867626,-478.04,0.00031388,2]
[359385176,1745965867636,-463.14,0.00031388,2]
[359385177,1745965867646,-963.49,0.00031388,2]
[359385178,1745965867655,-400.0,0.00031388,2]
[359385179,1745965867666,-465.12,0.00031388,2]
[359385180,1745965867675,-806.81,0.00031388,2]
[359385181,1745965867686,-400.0,0.00031388,2]
[359385182,1745965867695,-410.61,0.00031388,2]
[359385183,1745965867705,-400.0,0.00031388,2]
[359385184,1745965867715,-1263.83,0.00031388,2]
[359385185,1745965867725,-453.97,0.00031388,2]
[359385186,1745965867735,-1383.41,0.00031388,2]
[359385187,1745965867744,-400.0,0.00031388,2]
[359385188,1745965867755,-512.01,0.00031388,2]
[359385189,1745965867764,-400.0,0.00031388,2]
[359385190,1745965867774,-728.24,0.00031388,2]
[359385191,1745965867785,-400.0,0.00031388,2]
[359385192,1745965867797,-1422.9,0.00031388,2]
[359385193,1745965867807,-2294.8,0.00031388,2]
[359385194,1745965867819,-409.84,0.00031388,2]
[359385195,1745965867830,-937.84,0.00031388,2]
[359385196,1745965867840,-1024.45,0.00031388,2]
[359385197,1745965867851,-2784.61,0.00031388,2]
[359385198,1745965867863,-501.16,0.00031388,2]
[359385199,1745965867873,-1202.0,0.00031388,2]
[359385200,1745965867883,-719.18,0.00031388,2]
[359385201,1745965867893,-1358.32,0.00031388,2]
[359385202,1745965867903,-4215.29,0.00031388,2]
[359385203,1745965867913,-489.54,0.00031388,2]
[359385204,1745965867923,-160.0,0.000314,36]
[359385205,1745965867934,-250.0,0.00031433,2]
[359385206,1745965867943,-2596.53974516,0.00031486,10]
[359385207,1745965867952,-151.0,0.00031506,7]
[359385208,1745965867962,-400.0,0.00031506,2]
[359385209,1745965867971,-451.98,0.00031506,2]
[359385210,1745965867980,-400.0,0.00031506,2]
[359385211,1745965867990,-438.8,0.00031506,2]
[359385212,1745965867999,-400.0,0.00031506,2]
[359385213,1745965868008,-487.76,0.00031506,2]
[359385214,1745965868018,-616.52,0.00031506,2]
[359385215,1745965868027,-757.11,0.00031506,2]
[359385216,1745965868036,-238.30027886,0.00031506,2]
[359385217,1745965868045,-599.52,0.00031506,2]
[359385218,1745965868055,-261.49985115,0.00031506,2]
[359385219,1745965868064,-1130.55,0.00031506,2]
[359385220,1745965868075,-871.7,0.00031506,2]
[359385221,1745965868085,-400.0,0.00031506,2]
[359385222,1745965868095,-2618.11,0.00031506,2]
[359385223,1745965868105,-418.78,0.00031506,2]
[359385224,1745965868115,-400.0,0.00031506,2]
[359385225,1745965868124,-934.01,0.00031506,2]
[359385226,1745965868134,-1118.61,0.00031506,2]
[359385227,1745965868144,-405.75,0.00031506,2]
[359385228,1745965868154,-400.0,0.00031506,2]
[359385229,1745965868164,-730.98,0.00031506,2]
[359385230,1745965868174,-400.0,0.00031506,2]
[359385231,1745965868183,-566.98,0.00031506,2]
[359385232,1745965868196,-893.77,0.00031506,2]
[359385233,1745965868207,-731.76,0.00031506,2]
[359385234,1745965868217,-1275.51,0.00031506,2]
[359385235,1745965868226,-445.84,0.00031506,2]
[359385236,1745965868238,-1753.72,0.00031506,2]
[359385237,1745965868249,-445.02,0.00031506,2]
[359385238,1745965868259,-672.19,0.00031506,2]
[359385239,1745965868270,-1367.8,0.00031506,2]
[359385240,1745965868280,-1033.02,0.00031506,2]
[359385241,1745965868290,-743.45,0.00031506,2]
[359385242,1745965868300,-713.45,0.00031506,2]
[359385243,1745965868309,-402.04,0.00031506,2]
[359385244,1745965868319,-3764.84,0.00031506,2]
[359385245,1745965868329,-3094.27,0.00031506,2]
[359385246,1745965868339,-417.66,0.00031506,2]
[359385247,1745965868350,-400.0,0.00031506,2]
[359385248,1745965868360,-400.0,0.00031506,2]
[359385249,1745965868370,-774.0,0.00031506,2]
[359385250,1745965868380,-1191.57,0.00031506,2]
[359385251,1745965868389,-948.03,0.00031506,2]
[359385252,1745965868399,-1212.7,0.00031506,2]
[359385253,1745965868408,-829.03,0.00031506,2]
[359385254,1745965868418,-618.67,0.00031506,2]
[359385255,1745965868427,-2209.47,0.00031506,2]
[359385256,1745965868437,-779.7,0.00031506,2]
[359385257,1745965868447,-400.0,0.00031506,2]
[359385258,1745965868457,-366.82101182,0.00031506,2]
[359385259,1745965868467,-574.83,0.00031506,2]
[359385260,1745965868477,-1051.35,0.00031506,2]
[359385261,1745965868487,-2169.26,0.00031506,2]
[359385262,1745965868497,-400.0,0.00031506,2]
[359385263,1745965868507,-817.36,0.00031506,2]
[359385264,1745965868517,-962.08,0.00031506,2]
[359385265,1745965868527,-776.26,0.00031506,2]
[359385266,1745965868536,-2082.61,0.00031506,2]
[359385267,1745965868546,-400.0,0.00031506,2]
[359385268,1745965868556,-400.0,0.00031506,2]
[359385269,1745965868566,-1118.47,0.00031506,2]
[359385270,1745965868576,-2991.06,0.00031506,2]
[359385271,1745965868588,-2334.65,0.00031506,2]
[359385272,1745965868599,-439.33,0.00031506,2]
[359385273,1745965868610,-436.46,0.00031506,2]
[359385274,1745965868620,-400.0,0.00031506,2]
[359385275,1745965868630,-1554.49,0.00031506,2]
[359385276,1745965868640,-1199.73,0.00031506,2]
[359385277,1745965868651,-2606.96,0.00031506,2]
[359385278,1745965868662,-550.32,0.00031506,2]
[359385279,1745965868672,-400.0,0.00031506,2]
[359385280,1745965868682,-1329.8,0.00031506,2]
[359385281,1745965868691,-5657.09,0.00031506,2]
[359385282,1745965868701,-2328.55,0.00031506,2]
[359385283,1745965868711,-1398.53,0.00031506,2]
[359385284,1745965868721,-516.76,0.00031506,2]
[359385285,1745965868731,-151.0,0.00031506,7]
[359385286,1745965868741,-150.0,0.0003152,5]
[359385287,1745965868750,-400.0,0.00031662,2]
[359385288,1745965868760,-400.0,0.00031662,2]
[359385289,1745965868770,-418.65,0.00031662,2]
[359385290,1745965868779,-478.04,0.00031662,2]
[359385291,1745965868790,-463.14,0.00031662,2]
[359385292,1745965868801,-963.49,0.00031662,2]
[359385293,1745965868812,-400.0,0.00031662,2]
[359385294,1745965868822,-465.12,0.00031662,2]
[359385295,1745965868832,-806.81,0.00031662,2]
[359385296,1745965868842,-201.28383298,0.00031662,2]
[359385297,1745965868852,-410.61,0.00031662,2]
[359385298,1745965868862,-400.0,0.00031662,2]
[359385299,1745965868873,-1263.83,0.00031662,2]
[359385300,1745965868883,-453.97,0.00031662,2]
[359385301,1745965868893,-1383.41,0.00031662,2]
[359385302,1745965868904,-335.54574457,0.00031662,2]
[359385303,1745965868915,-512.01,0.00031662,2]
[359385304,1745965868925,-400.0,0.00031662,2]
[359385305,1745965868936,-728.24,0.00031662,2]
[359385306,1745965868946,-400.0,0.00031662,2]
[359385307,1745965868955,-1422.9,0.00031662,2]
[359385308,1745965868965,-2294.8,0.00031662,2]
[359385309,1745965868974,-409.84,0.00031662,2]
[359385310,1745965868983,-937.84,0.00031662,2]
[359385311,1745965868993,-1024.45,0.00031662,2]
[359385312,1745965869002,-2784.61,0.00031662,2]
[359385313,1745965869013,-501.16,0.00031662,2]
[359385314,1745965869023,-1202.0,0.00031662,2]
[359385315,1745965869033,-719.18,0.00031662,2]
[359385316,1745965869042,-1358.32,0.00031662,2]
[359385317,1745965869052,-4215.29,0.00031662,2]
[359385318,1745965869061,-489.54,0.00031662,2]
[359385319,1745965869071,-250.0,0.000317,7]
[359385320,1745965869080,-450.0,0.00031717,5]
[359385321,1745965869090,-151.0,0.0003178,7]
[359385322,1745965869099,-400.0,0.0003178,2]
[359385323,1745965869109,-451.98,0.0003178,2]
[359385324,1745965869118,-400.0,0.0003178,2]
[359385325,1745965869128,-438.8,0.0003178,2]
[359385326,1745965869138,-400.0,0.0003178,2]
[359385327,1745965869153,-487.76,0.0003178,2]
[359385328,1745965869164,-616.52,0.0003178,2]
[359385329,1745965869173,-757.11,0.0003178,2]
[359385330,1745965869183,-599.52,0.0003178,2]
[359385331,1745965869192,-1130.55,0.0003178,2]
[359385332,1745965869202,-871.7,0.0003178,2]
[359385333,1745965869211,-400.0,0.0003178,2]
[359385334,1745965869222,-2618.11,0.0003178,2]
[359385335,1745965869233,-418.78,0.0003178,2]
[359385336,1745965869245,-495.24592663,0.0003178,2]
[359385337,1745965869255,-934.01,0.0003178,2]
[359385338,1745965869264,-1118.61,0.0003178,2]
[359385339,1745965869273,-405.75,0.0003178,2]
[359385340,1745965869283,-400.0,0.0003178,2]
[359385341,1745965869292,-730.98,0.0003178,2]
[359385342,1745965869302,-400.0,0.0003178,2]
[359385343,1745965869312,-566.98,0.0003178,2]
[359385344,1745965869331,-893.77,0.0003178,2]
[359385345,1745965869341,-731.76,0.0003178,2]
[359385346,1745965869351,-1275.51,0.0003178,2]
[359385347,1745965869360,-445.84,0.0003178,2]
[359385348,1745965869369,-1753.72,0.0003178,2]
[359385349,1745965869379,-445.02,0.0003178,2]
[359385350,1745965869389,-672.19,0.0003178,2]
[359385351,1745965869399,-1367.8,0.0003178,2]
[359385352,1745965869409,-1033.02,0.0003178,2]
[359385353,1745965869419,-743.45,0.0003178,2]
[359385354,1745965869428,-713.45,0.0003178,2]
[359385355,1745965869438,-402.04,0.0003178,2]
[359385356,1745965869448,-3764.84,0.0003178,2]
[359385357,1745965869458,-3094.27,0.0003178,2]
[359385358,1745965869467,-417.66,0.0003178,2]
[359385359,1745965869478,-400.0,0.0003178,2]
[359385360,1745965869489,-400.0,0.0003178,2]
[359385361,1745965869499,-774.0,0.0003178,2]
[359385362,1745965869509,-1191.57,0.0003178,2]
[359385363,1745965869519,-948.03,0.0003178,2]
[359385364,1745965869528,-1212.7,0.0003178,2]
[359385365,1745965869539,-829.03,0.0003178,2]
[359385366,1745965869548,-618.67,0.0003178,2]
[359385367,1745965869558,-2209.47,0.0003178,2]
[359385368,1745965869567,-779.7,0.0003178,2]
[359385369,1745965869576,-400.0,0.0003178,2]
[359385370,1745965869587,-574.83,0.0003178,2]
[359385371,1745965869597,-1051.35,0.0003178,2]
[359385372,1745965869606,-2169.26,0.0003178,2]
[359385373,1745965869616,-447.93,0.0003178,2]
[359385374,1745965869627,-817.36,0.0003178,2]
[359385375,1745965869636,-962.08,0.0003178,2]
[359385376,1745965869647,-776.26,0.0003178,2]
[359385377,1745965869659,-2082.61,0.0003178,2]
[359385378,1745965869669,-400.0,0.0003178,2]
[359385379,1745965869678,-400.0,0.0003178,2]
[359385380,1745965869688,-1118.47,0.0003178,2]
[359385381,1745965869697,-2991.06,0.0003178,2]
[359385382,1745965869707,-2334.65,0.0003178,2]
[359385383,1745965869717,-439.33,0.0003178,2]
[359385384,1745965869726,-436.46,0.0003178,2]
[359385385,1745965869736,-400.0,0.0003178,2]
[359385386,1745965869746,-1554.49,0.0003178,2]
[359385387,1745965869755,-1199.73,0.0003178,2]
[359385388,1745965869764,-2606.96,0.0003178,2]
[359385389,1745965869773,-550.32,0.0003178,2]
[359385390,1745965869783,-400.0,0.0003178,2]
[359385391,1745965869794,-1329.8,0.0003178,2]
[359385392,1745965869804,-5657.09,0.0003178,2]
[359385393,1745965869813,-2328.55,0.0003178,2]
[359385394,1745965869823,-1398.53,0.0003178,2]
[359385395,1745965869832,-516.76,0.0003178,2]
[359385396,1745965869842,-209.950274,0.0003178,7]
[359385397,1745965869851,-2596.53974516,0.00031934,10]
[359385398,1745965869861,-400.0,0.00031936,2]
[359385399,1745965869871,-400.0,0.00031936,2]
[359385400,1745965869880,-418.65,0.00031936,2]
[359385401,1745965869890,-478.04,0.00031936,2]
[359385402,1745965869899,-463.14,0.00031936,2]
[359385403,1745965869909,-963.49,0.00031936,2]
[359385404,1745965869920,-523.88173182,0.00031936,2]
[359385405,1745965869930,-465.12,0.00031936,2]
[359385406,1745965869942,-806.81,0.00031936,2]
[359385407,1745965869952,-410.61,0.00031936,2]
[359385408,1745965869963,-497.41739976,0.00031936,2]
[359385409,1745965869973,-1263.83,0.00031936,2]
[359385410,1745965869982,-453.97,0.00031936,2]
[359385411,1745965869991,-1383.41,0.00031936,2]
[359385412,1745965870001,-512.01,0.00031936,2]
[359385413,1745965870010,-400.0,0.00031936,2]
[359385414,1745965870020,-728.24,0.00031936,2]
[359385415,1745965870030,-400.0,0.00031936,2]
[359385416,1745965870040,-1422.9,0.00031936,2]
[359385417,1745965870050,-2294.8,0.00031936,2]
[359385418,1745965870059,-409.84,0.00031936,2]
[359385419,1745965870069,-937.84,0.00031936,2]
[359385420,1745965870078,-1024.45,0.00031936,2]
[359385421,1745965870089,-2784.61,0.00031936,2]
[359385422,1745965870098,-501.16,0.00031936,2]
[359385423,1745965870107,-1202.0,0.00031936,2]
[359385424,1745965870117,-719.18,0.00031936,2]
[359385425,1745965870129,-1358.32,0.00031936,2]
[359385426,1745965870138,-4215.29,0.00031936,2]
[359385427,1745965870150,-489.54,0.00031936,2]
[359385428,1745965870161,-400.0,0.00031968,2]
[359385429,1745965870170,-400.0,0.00032054,2]
[359385430,1745965870180,-451.98,0.00032054,2]
[359385431,1745965870189,-370.29349297,0.00032054,2]
[359385432,1745965870313,-438.8,0.00032054,2]
[359385433,1745965870324,-400.0,0.00032054,2]
[359385434,1745965870333,-487.76,0.00032054,2]
[359385435,1745965870343,-616.52,0.00032054,2]
[359385436,1745965870352,-757.11,0.00032054,2]
[359385437,1745965870361,-599.52,0.00032054,2]
[359385438,1745965870371,-1130.55,0.00032054,2]
[359385439,1745965870381,-871.7,0.00032054,2]
[359385440,1745965870391,-400.0,0.00032054,2]
[359385441,1745965870400,-2618.11,0.00032054,2]
[359385442,1745965870411,-418.78,0.00032054,2]
[359385443,1745965870422,-934.01,0.00032054,2]
[359385444,1745965870433,-1118.61,0.00032054,2]
[359385445,1745965870443,-405.75,0.00032054,2]
[359385446,1745965870453,-400.0,0.00032054,2]
[359385447,1745965870463,-730.98,0.00032054,2]
[359385448,1745965870473,-250.47603227,0.00032054,2]
[359385449,1745965870482,-566.98,0.00032054,2]
[359385450,1745965870492,-893.77,0.00032054,2]
[359385451,1745965870501,-731.76,0.00032054,2]
[359385452,1745965870511,-1275.51,0.00032054,2]
[359385453,1745965870521,-445.84,0.00032054,2]
[359385454,1745965870530,-1753.72,0.00032054,2]
[359385455,1745965870540,-445.02,0.00032054,2]
[359385456,1745965870551,-672.19,0.00032054,2]
[359385457,1745965870560,-1367.8,0.00032054,2]
[359385458,1745965870570,-1033.02,0.00032054,2]
[359385459,1745965870579,-743.45,0.00032054,2]
[359385460,1745965870589,-713.45,0.00032054,2]
[359385461,1745965870599,-402.04,0.00032054,2]
[359385462,1745965870608,-3764.84,0.00032054,2]
[359385463,1745965870618,-3094.27,0.00032054,2]
[359385464,1745965870628,-417.66,0.00032054,2]
[359385465,1745965870637,-400.0,0.00032054,2]
[359385466,1745965870648,-400.0,0.00032054,2]
[359385467,1745965870657,-774.0,0.00032054,2]
[359385468,1745965870667,-1191.57,0.00032054,2]
[359385469,1745965870676,-948.03,0.00032054,2]
[359385470,1745965870686,-1212.7,0.00032054,2]
[359385471,1745965870696,-829.03,0.00032054,2]
[359385472,1745965870706,-618.67,0.00032054,2]
[359385473,1745965870715,-2209.47,0.00032054,2]
[359385474,1745965870725,-779.7,0.00032054,2]
[359385475,1745965870735,-400.0,0.00032054,2]
[359385476,1745965870745,-574.83,0.00032054,2]
[359385477,1745965870754,-1051.35,0.00032054,2]
[359385478,1745965870763,-2169.26,0.00032054,2]
[359385479,1745965870773,-817.36,0.00032054,2]
[359385480,1745965870782,-962.08,0.00032054,2]
[359385481,1745965870795,-776.26,0.00032054,2]
[359385482,1745965870804,-2082.61,0.00032054,2]
[359385483,1745965870814,-400.0,0.00032054,2]
[359385484,1745965870823,-400.0,0.00032054,2]
[359385485,1745965870833,-1118.47,0.00032054,2]
[359385486,1745965870842,-2334.65,0.00032054,2]
[359385487,1745965870852,-439.33,0.00032054,2]
[359385488,1745965870862,-436.46,0.00032054,2]
[359385489,1745965870872,-369.01226932,0.00032054,2]
[359385490,1745965870883,-1554.49,0.00032054,2]
[359385491,1745965870893,-1199.73,0.00032054,2]
[359385492,1745965870902,-2606.96,0.00032054,2]
[359385493,1745965870912,-550.32,0.00032054,2]
[359385494,1745965870922,-400.0,0.00032054,2]
[359385495,1745965870931,-1329.8,0.00032054,2]
[359385496,1745965870941,-5657.09,0.00032054,2]
[359385497,1745965870950,-2328.55,0.00032054,2]
[359385498,1745965870960,-1398.53,0.00032054,2]
[359385499,1745965870970,-516.76,0.00032054,2]
[359385500,1745965870981,-250.0,0.000322,7]
[359385501,1745965870992,-261.3,0.000322,7]
[359385502,1745965871003,-400.0,0.0003221,2]
[359385503,1745965871015,-400.0,0.0003221,2]
[359385504,1745965871025,-418.65,0.0003221,2]
[359385505,1745965871035,-478.04,0.0003221,2]
[359385506,1745965871045,-463.14,0.0003221,2]
[359385507,1745965871056,-963.49,0.0003221,2]
[359385508,1745965871066,-465.12,0.0003221,2]
[359385509,1745965871075,-806.81,0.0003221,2]
[359385510,1745965871085,-410.61,0.0003221,2]
[359385511,1745965871095,-1263.83,0.0003221,2]
[359385512,1745965871105,-453.97,0.0003221,2]
[359385513,1745965871116,-1383.41,0.0003221,2]